fUSD/lending_fUSD_20250112
["ID","MTS","AMOUNT","RATE_DAILY","PERIOD"]
[348591613,1736653835151,-220.79742801,9.788e-05,2]
[348591614,1736653835161,-150.0,9.792e-05,2]
[348591615,1736653835173,-423.79366627,9.798e-05,2]
[348591616,1736653835182,-220.79742801,9.798e-05,2]
[348591617,1736653835192,-150.0,9.8e-05,2]
[348591618,1736653835202,-423.79366627,9.808e-05,2]
[348591619,1736653835212,-220.79742801,9.808e-05,2]
[348591620,1736653835222,-150.0,9.813e-05,2]
[348591621,1736653835232,-423.79366627,9.818e-05,2]
[348591622,1736653835241,-220.79742801,9.818e-05,2]
[348591623,1736653835251,-152.0,9.819e-05,3]
[348591624,1736653835261,-150.0,9.827e-05,2]
[348591625,1736653835270,-423.79366627,9.828e-05,2]
[348591626,1736653835279,-220.79742801,9.828e-05,2]
[348591627,1736653835288,-150.0,9.833e-05,2]
[348591628,1736653835298,-423.79366627,9.838e-05,2]
[348591629,1736653835308,-220.79742801,9.838e-05,2]
[348591630,1736653835318,-150.0,9.84e-05,2]
[348591631,1736653835329,-423.79366627,9.848e-05,2]
[348591632,1736653835338,-220.79742801,9.848e-05,2]
[348591633,1736653835347,-150.0,9.853e-05,2]
[348591634,1736653835358,-423.79366627,9.859e-05,2]
[348591635,1736653835367,-220.79742801,9.859e-05,2]
[348591636,1736653835378,-150.0,9.867e-05,2]
[348591637,1736653835388,-423.79366627,9.869e-05,2]
[348591638,1736653835397,-220.79742801,9.869e-05,2]
[348591639,1736653835406,-150.0,9.875e-05,2]
[348591640,1736653835415,-423.79366627,9.879e-05,2]
[348591641,1736653835425,-220.79742801,9.879e-05,2]
[348591642,1736653835435,-150.0,9.88e-05,2]
[348591643,1736653835445,-423.79366627,9.889e-05,2]
[348591644,1736653835455,-220.79742801,9.889e-05,2]
[348591645,1736653835464,-5000.0,9.892e-05,2]
[348591646,1736653835473,-150.0,9.893e-05,2]
[348591647,1736653835483,-423.79366627,9.899e-05,2]
[348591648,1736653835492,-220.79742801,9.899e-05,2]
[348591649,1736653835502,-150.0,9.9e-05,2]
[348591650,1736653835511,-980.06,9.9e-05,2]
[348591651,1736653835522,-150.0,9.9e-05,2]
[348591652,1736653835531,-150.0,9.9e-05,2]
[348591653,1736653835541,-980.06,9.9e-05,2]
[348591654,1736653835551,-840.95,9.9e-05,2]
[348591655,1736653835561,-150.0,9.9e-05,2]
[348591656,1736653835571,-150.0,9.907e-05,2]
[348591657,1736653835581,-423.79366627,9.909e-05,2]
[348591658,1736653835590,-220.79742801,9.909e-05,2]
[348591659,1736653835600,-150.0,9.917e-05,2]
[348591660,1736653835609,-423.79366627,9.919e-05,2]
[348591661,1736653835618,-220.79742801,9.919e-05,2]
[348591662,1736653835629,-150.0,9.92e-05,2]
[348591663,1736653835639,-423.79366627,9.929e-05,2]
[348591664,1736653835649,-220.79742801,9.929e-05,2]
[348591665,1736653835658,-150.0,9.933e-05,2]
[348591666,1736653835667,-500.0,9.935e-05,2]
[348591667,1736653835677,-500.0,9.935e-05,2]
[348591668,1736653835686,-500.0,9.935e-05,2]
[348591669,1736653835695,-500.0,9.935e-05,2]
[348591670,1736653835705,-631.90042625,9.935e-05,2]
[348591671,1736653835714,-423.79366627,9.939e-05,2]
[348591672,1736653835723,-220.79742801,9.939e-05,2]
[348591673,1736653835733,-150.0,9.947e-05,2]
[348591674,1736653835742,-423.79366627,9.949e-05,2]
[348591675,1736653835751,-220.79742801,9.949e-05,2]
[348591676,1736653835761,-150.0,9.958e-05,2]
[348591677,1736653835771,-423.79366627,9.96e-05,2]
[348591678,1736653835780,-220.79742801,9.96e-05,2]
[348591679,1736653835790,-150.0,9.96e-05,2]
[348591680,1736653835799,-423.79366627,9.97e-05,2]
[348591681,1736653835808,-220.79742801,9.97e-05,2]
[348591682,1736653835818,-150.0,9.973e-05,2]
[348591683,1736653835828,-423.79366627,9.98e-05,2]
[348591684,1736653835837,-220.79742801,9.98e-05,2]
[348591685,1736653835846,-150.0,9.987e-05,2]
[348591686,1736653835856,-1412.191,9.989e-05,2]
[348591687,1736653835865,-423.79366627,9.99e-05,2]
[348591688,1736653835876,-220.79742801,9.99e-05,2]
[348591689,1736653835886,-1175.89,9.991e-05,2]
[348591690,1736653835897,-500.0,9.991e-05,2]
[348591691,1736653835907,-2172.83,9.991e-05,2]
[348591692,1736653835916,-829.21,9.991e-05,2]
[348591693,1736653835927,-2687.4,9.991e-05,2]
[348591694,1736653835936,-1761.89,9.991e-05,2]
[348591695,1736653835947,-500.0,9.991e-05,2]
[348591696,1736653835958,-2907.81,9.991e-05,2]
[348591697,1736653835968,-1478.87,9.991e-05,2]
[348591698,1736653835977,-500.0,9.991e-05,2]
[348591699,1736653835987,-500.0,9.991e-05,2]
[348591700,1736653836000,-500.0,9.991e-05,2]
[348591701,1736653836009,-1027.47,9.991e-05,2]
[348591702,1736653836019,-500.0,9.991e-05,2]
[348591703,1736653836028,-1980.99,9.991e-05,2]
[348591704,1736653836038,-500.0,9.991e-05,2]
[348591705,1736653836047,-960.35,9.991e-05,2]
[348591706,1736653836057,-529.90109859,9.991e-05,2]
[348591707,1736653836066,-500.0,9.991e-05,2]
[348591708,1736653836077,-889.5,9.991e-05,2]
[348591709,1736653836086,-500.0,9.992e-05,2]
[348591710,1736653836096,-500.0,9.992e-05,2]
[348591711,1736653836105,-500.0,9.992e-05,2]
[348591712,1736653836115,-500.0,9.992e-05,2]
[348591713,1736653836123,-502.8609194,9.992e-05,2]
[348591714,1736653836133,-310.6,9.992e-05,2]
[348591715,1736653836143,-500.0,9.992e-05,2]
[348591716,1736653836152,-500.0,9.992e-05,2]
[348591717,1736653836162,-500.0,9.992e-05,2]
[348591718,1736653836172,-500.0,9.992e-05,2]
[348591719,1736653836181,-501.93018528,9.992e-05,2]
[348591720,1736653836190,-500.0,9.992e-05,2]
[348591721,1736653836200,-504.13475915,9.992e-05,2]
[348591722,1736653836210,-500.0,9.992e-05,2]
[348591723,1736653836220,-502.47161019,9.992e-05,2]
[348591724,1736653836230,-500.0,9.992e-05,2]
[348591725,1736653836240,-500.0,9.992e-05,2]
[348591726,1736653836250,-484.24738479,9.992e-05,2]
[348591727,1736653836260,-500.0,9.992e-05,2]
[348591728,1736653836270,-500.0,9.992e-05,2]
[348591729,1736653836282,-500.0,9.992e-05,2]
[348591730,1736653836292,-500.0,9.992e-05,2]
[348591731,1736653836303,-502.52999952,9.992e-05,2]
[348591732,1736653836313,-500.0,9.992e-05,2]
[348591733,1736653836322,-500.0,9.992e-05,2]
[348591734,1736653836331,-500.0,9.992e-05,2]
[348591735,1736653836341,-500.0,9.992e-05,2]
[348591736,1736653836350,-500.0,9.992e-05,2]
[348591737,1736653836360,-500.0,9.992e-05,2]
[348591738,1736653836369,-500.0,9.992e-05,2]
[348591739,1736653836379,-500.0,9.992e-05,2]
[348591740,1736653836388,-543.36201233,9.992e-05,2]
[348591741,1736653836398,-500.0,9.992e-05,2]
[348591742,1736653836408,-500.0,9.992e-05,2]
[348591743,1736653836418,-502.55622211,9.992e-05,2]
[348591744,1736653836427,-500.0,9.992e-05,2]
[348591745,1736653836437,-500.0,9.992e-05,2]
[348591746,1736653836446,-500.0,9.992e-05,2]
[348591747,1736653836456,-389.43578497,9.992e-05,2]
[348591748,1736653836466,-500.0,9.992e-05,2]
[348591749,1736653836475,-500.0,9.992e-05,2]
[348591750,1736653836486,-500.0,9.992e-05,2]
[348591751,1736653836496,-503.03805005,9.992e-05,2]
[348591752,1736653836506,-500.0,9.992e-05,2]
[348591753,1736653836516,-500.0,9.992e-05,2]
[348591754,1736653836526,-599.77346674,9.992e-05,2]
[348591755,1736653836536,-500.0,9.992e-05,2]
[348591756,1736653836547,-503.15404756,9.992e-05,2]
[348591757,1736653836557,-500.0,9.992e-05,2]
[348591758,1736653836566,-500.0,9.992e-05,2]
[348591759,1736653836576,-500.0,9.992e-05,2]
[348591760,1736653836586,-501.54011123,9.992e-05,2]
[348591761,1736653836595,-500.0,9.992e-05,2]
[348591762,1736653836604,-192.16106163,9.992e-05,2]
[348591763,1736653836614,-500.0,9.992e-05,2]
[348591764,1736653836625,-168.83556566,9.992e-05,2]
[348591765,1736653836634,-500.0,9.992e-05,2]
[348591766,1736653836645,-500.0,9.992e-05,2]
[348591767,1736653836655,-500.0,9.992e-05,2]
[348591768,1736653836665,-500.0,9.992e-05,2]
[348591769,1736653836674,-500.0,9.992e-05,2]
[348591770,1736653836683,-500.0,9.992e-05,2]
[348591771,1736653836692,-500.0,9.992e-05,2]
[348591772,1736653836702,-500.0,9.992e-05,2]
[348591773,1736653836712,-500.0,9.992e-05,2]
[348591774,1736653836721,-500.0,9.992e-05,2]
[348591775,1736653836734,-500.0,9.992e-05,2]
[348591776,1736653836745,-500.0,9.992e-05,2]
[348591777,1736653836756,-500.0,9.992e-05,2]
[348591778,1736653836765,-500.0,9.992e-05,2]
[348591779,1736653836775,-500.0,9.992e-05,2]
[348591780,1736653836784,-500.0,9.992e-05,2]
[348591781,1736653836796,-500.0,9.992e-05,2]
[348591782,1736653836806,-500.0,9.992e-05,2]
[348591783,1736653836816,-500.0,9.992e-05,2]
[348591784,1736653836825,-500.0,9.992e-05,2]
[348591785,1736653836835,-500.0,9.992e-05,2]
[348591786,1736653836844,-500.0,9.992e-05,2]
[348591787,1736653836854,-501.26962987,9.992e-05,2]
[348591788,1736653836865,-628.2,9.992e-05,2]
[348591789,1736653836875,-500.0,9.992e-05,2]
[348591790,1736653836886,-422.15349019,9.992e-05,2]
[348591791,1736653836897,-500.0,9.992e-05,2]
[348591792,1736653836906,-502.21151863,9.992e-05,2]
[348591793,1736653836917,-503.16327323,9.992e-05,2]
[348591794,1736653836927,-500.0,9.992e-05,2]
[348591795,1736653836936,-500.0,9.992e-05,2]
[348591796,1736653836946,-549.59363587,9.992e-05,2]
[348591797,1736653836956,-500.0,9.992e-05,2]
[348591798,1736653836967,-619.2,9.992e-05,2]
[348591799,1736653836977,-501.62441516,9.992e-05,2]
[348591800,1736653836987,-502.2759886,9.992e-05,2]
[348591801,1736653837000,-529.63,9.992e-05,2]
[348591802,1736653837010,-500.0,9.992e-05,2]
[348591803,1736653837021,-502.54669311,9.992e-05,2]
[348591804,1736653837034,-500.89063038,9.992e-05,2]
[348591805,1736653837050,-500.0,9.992e-05,2]
[348591806,1736653837060,-500.87476838,9.992e-05,2]
[348591807,1736653837070,-512.15,9.992e-05,2]
[348591808,1736653837079,-500.0,9.992e-05,2]
[348591809,1736653837089,-500.0,9.992e-05,2]
[348591810,1736653837098,-500.0,9.992e-05,2]
[348591811,1736653837107,-606.4,9.992e-05,2]
[348591812,1736653837116,-500.0,9.992e-05,2]
[348591813,1736653837126,-500.0,9.992e-05,2]
[348591814,1736653837135,-500.0,9.992e-05,2]
[348591815,1736653837145,-500.0,9.992e-05,2]
[348591816,1736653837154,-502.45281219,9.992e-05,2]
[348591817,1736653837164,-522.12681578,9.992e-05,2]
[348591818,1736653837173,-500.0,9.992e-05,2]
[348591819,1736653837183,-500.0,9.992e-05,2]
[348591820,1736653837193,-503.55588775,9.992e-05,2]
[348591821,1736653837202,-500.0,9.992e-05,2]
[348591822,1736653837211,-953.49,9.992e-05,2]
[348591823,1736653837220,-500.0,9.992e-05,2]
[348591824,1736653837230,-502.21243041,9.992e-05,2]
[348591825,1736653837240,-500.0,9.992e-05,2]
[348591826,1736653837249,-500.78490231,9.992e-05,2]
[348591827,1736653837259,-500.0,9.992e-05,2]
[348591828,1736653837267,-590.29,9.992e-05,2]
[348591829,1736653837277,-695.33,9.992e-05,2]
[348591830,1736653837286,-439.62562778,9.992e-05,2]
[348591831,1736653837295,-501.60551114,9.992e-05,2]
[348591832,1736653837304,-503.70151103,9.992e-05,2]
[348591833,1736653837313,-500.0,9.992e-05,2]
[348591834,1736653837322,-266.84420989,9.992e-05,2]
[348591835,1736653837331,-500.0,9.992e-05,2]
[348591836,1736653837340,-772.29,9.992e-05,2]
[348591837,1736653837350,-500.0,9.992e-05,2]
[348591838,1736653837359,-500.0,9.992e-05,2]
[348591839,1736653837368,-500.0,9.992e-05,2]
[348591840,1736653837377,-500.0,9.992e-05,2]
[348591841,1736653837386,-500.0,9.992e-05,2]
[348591842,1736653837395,-502.60822235,9.992e-05,2]
[348591843,1736653837404,-507.54,9.992e-05,2]
[348591844,1736653837413,-500.0,9.992e-05,2]
[348591845,1736653837422,-501.58001811,9.992e-05,2]
[348591846,1736653837432,-500.79444497,9.992e-05,2]
[348591847,1736653837441,-500.0,9.992e-05,2]
[348591848,1736653837451,-500.0,9.992e-05,2]
[348591849,1736653837460,-500.0,9.992e-05,2]
[348591850,1736653837470,-500.0,9.992e-05,2]
[348591851,1736653837479,-500.0,9.992e-05,2]
[348591852,1736653837489,-500.0,9.992e-05,2]
[348591853,1736653837498,-500.0,9.992e-05,2]
[348591854,1736653837507,-505.62922625,9.992e-05,2]
[348591855,1736653837516,-504.60712974,9.992e-05,2]
[348591856,1736653837526,-500.0,9.992e-05,2]
[348591857,1736653837535,-500.0,9.992e-05,2]
[348591858,1736653837545,-500.0,9.992e-05,2]
[348591859,1736653837554,-500.0,9.992e-05,2]
[348591860,1736653837563,-501.72099142,9.992e-05,2]
[348591861,1736653837572,-500.0,9.992e-05,2]
[348591862,1736653837582,-500.0,9.992e-05,2]
[348591863,1736653837591,-549.59,9.992e-05,2]
[348591864,1736653837601,-500.0,9.992e-05,2]
[348591865,1736653837610,-500.0,9.992e-05,2]
[348591866,1736653837619,-513.05551584,9.992e-05,2]
[348591867,1736653837628,-733.88,9.992e-05,2]
[348591868,1736653837638,-561.94,9.992e-05,2]
[348591869,1736653837647,-500.0,9.992e-05,2]
[348591870,1736653837656,-500.0,9.992e-05,2]
[348591871,1736653837666,-500.0,9.992e-05,2]
[348591872,1736653837676,-502.13087182,9.992e-05,2]
[348591873,1736653837685,-500.0,9.992e-05,2]
[348591874,1736653837695,-569.19,9.992e-05,2]
[348591875,1736653837704,-500.0,9.992e-05,2]
[348591876,1736653837713,-500.0,9.992e-05,2]
[348591877,1736653837723,-500.0,9.992e-05,2]
[348591878,1736653837732,-500.0,9.992e-05,2]
[348591879,1736653837741,-500.0,9.992e-05,2]
[348591880,1736653837750,-500.0,9.992e-05,2]
[348591881,1736653837759,-500.0,9.992e-05,2]
[348591882,1736653837768,-500.0,9.992e-05,2]
[348591883,1736653837778,-506.50938129,9.992e-05,2]
[348591884,1736653837787,-500.0,9.992e-05,2]
[348591885,1736653837796,-500.0,9.992e-05,2]
[348591886,1736653837806,-500.0,9.992e-05,2]
[348591887,1736653837815,-500.0,9.992e-05,2]
[348591888,1736653837824,-780.24,9.992e-05,2]
[348591889,1736653837834,-500.0,9.992e-05,2]
[348591890,1736653837843,-501.0734112,9.992e-05,2]
[348591891,1736653837853,-500.0,9.992e-05,2]
[348591892,1736653837863,-414.86228923,9.992e-05,2]
[348591893,1736653837872,-500.0,9.992e-05,2]
[348591894,1736653837881,-518.04074989,9.992e-05,2]
[348591895,1736653837894,-500.0,9.992e-05,2]
[348591896,1736653837904,-500.0,9.992e-05,2]
[348591897,1736653837913,-500.0,9.992e-05,2]
[348591898,1736653837922,-500.0,9.992e-05,2]
[348591899,1736653837931,-500.0,9.992e-05,2]
[348591900,1736653837940,-500.0,9.992e-05,2]
[348591901,1736653837950,-500.0,9.992e-05,2]
[348591902,1736653837959,-500.0,9.992e-05,2]
[348591903,1736653837969,-509.2853551,9.992e-05,2]
[348591904,1736653837978,-502.4004289,9.992e-05,2]
[348591905,1736653837988,-434.95752228,9.992e-05,2]
[348591906,1736653838000,-500.0,9.992e-05,2]
[348591907,1736653838010,-500.0,9.992e-05,2]
[348591908,1736653838019,-500.0,9.992e-05,2]
[348591909,1736653838028,-502.54360383,9.992e-05,2]
[348591910,1736653838038,-594.12,9.992e-05,2]
[348591911,1736653838047,-500.0,9.992e-05,2]
[348591912,1736653838057,-500.0,9.992e-05,2]
[348591913,1736653838066,-500.0,9.992e-05,2]
[348591914,1736653838076,-500.0,9.992e-05,2]
[348591915,1736653838085,-500.0,9.992e-05,2]
[348591916,1736653838096,-500.0,9.992e-05,2]
[348591917,1736653838106,-610.9,9.992e-05,2]
[348591918,1736653838115,-500.0,9.992e-05,2]
[348591919,1736653838124,-507.95398622,9.992e-05,2]
[348591920,1736653838133,-692.12,9.992e-05,2]
[348591921,1736653838143,-500.0,9.992e-05,2]
[348591922,1736653838152,-500.0,9.992e-05,2]
[348591923,1736653838161,-500.0,9.992e-05,2]
[348591924,1736653838170,-500.0,9.992e-05,2]
[348591925,1736653838179,-538.81,9.992e-05,2]
[348591927,1736653838188,-500.0,9.992e-05,2]
[348591929,1736653838197,-500.0,9.992e-05,2]
[348591930,1736653838207,-500.0,9.992e-05,2]
[348591932,1736653838216,-500.0,9.992e-05,2]
[348591933,1736653838224,-848.07,9.992e-05,2]
[348591934,1736653838234,-838.49,9.992e-05,2]
[348591935,1736653838243,-504.41654548,9.992e-05,2]
[348591936,1736653838253,-500.0,9.992e-05,2]
[348591937,1736653838262,-500.0,9.992e-05,2]
[348591938,1736653838271,-500.0,9.992e-05,2]
[348591939,1736653838280,-500.0,9.992e-05,2]
[348591940,1736653838289,-506.82077275,9.992e-05,2]
[348591941,1736653838298,-500.0,9.992e-05,2]
[348591942,1736653838308,-500.0,9.992e-05,2]
[348591943,1736653838317,-500.0,9.992e-05,2]
[348591944,1736653838326,-500.0,9.992e-05,2]
[348591945,1736653838335,-510.68,9.992e-05,2]
[348591946,1736653838345,-500.0,9.992e-05,2]
[348591947,1736653838354,-500.0,9.992e-05,2]
[348591948,1736653838363,-500.0,9.992e-05,2]
[348591949,1736653838373,-500.0,9.992e-05,2]
[348591950,1736653838382,-633.47438194,9.992e-05,2]
[348591951,1736653838391,-500.0,9.992e-05,2]
[348591952,1736653838401,-500.0,9.992e-05,2]
[348591953,1736653838410,-500.0,9.992e-05,2]
[348591954,1736653838419,-604.00503545,9.992e-05,2]
[348591955,1736653838429,-500.0,9.992e-05,2]
[348591956,1736653838438,-840.02,9.992e-05,2]
[348591957,1736653838447,-500.0,9.992e-05,2]
[348591958,1736653838457,-667.13,9.992e-05,2]
[348591959,1736653838466,-500.0,9.992e-05,2]
[348591960,1736653838475,-500.0,9.992e-05,2]
[348591961,1736653838484,-500.0,9.992e-05,2]
[348591962,1736653838669,-500.0,9.992e-05,2]
[348591963,1736653838681,-215.43068295,9.992e-05,2]
[348591964,1736653838691,-500.0,9.992e-05,2]
[348591965,1736653838702,-500.0,9.992e-05,2]
[348591966,1736653838712,-534.91840991,9.992e-05,2]
[348591967,1736653838722,-500.0,9.992e-05,2]
[348591968,1736653838731,-500.0,9.992e-05,2]
[348591969,1736653838742,-500.0,9.992e-05,2]
[348591970,1736653838754,-504.08844934,9.992e-05,2]
[348591971,1736653838766,-500.0,9.992e-05,2]
[348591972,1736653838776,-545.32,9.992e-05,2]
[348591973,1736653838786,-500.0,9.992e-05,2]
[348591974,1736653838795,-503.76479137,9.992e-05,2]
[348591975,1736653838804,-500.0,9.992e-05,2]
[348591976,1736653838813,-500.0,9.992e-05,2]
[348591977,1736653838823,-500.0,9.992e-05,2]
[348591978,1736653838832,-500.0,9.992e-05,2]
[348591979,1736653838841,-500.0,9.992e-05,2]
[348591980,1736653838850,-500.0,9.992e-05,2]
[348591981,1736653838859,-500.0,9.992e-05,2]
[348591982,1736653838869,-500.0,9.992e-05,2]
[348591983,1736653838879,-500.0,9.992e-05,2]
[348591984,1736653838889,-500.0,9.992e-05,2]
[348591985,1736653838901,-500.0,9.992e-05,2]
[348591986,1736653838912,-662.91,9.992e-05,2]
[348591987,1736653838921,-226.158848,9.992e-05,2]
[348591989,1736653838930,-153.82477832,9.992e-05,2]
[348591992,1736653838940,-635.82,9.992e-05,2]
[348591995,1736653838949,-500.48305138,9.992e-05,2]
[348591998,1736653838959,-500.0,9.992e-05,2]
[348592001,1736653838969,-500.0,9.992e-05,2]
[348592004,1736653838978,-500.0,9.992e-05,2]
[348592006,1736653838988,-581.9,9.992e-05,2]
[348592008,1736653839002,-500.0,9.992e-05,2]
[348592010,1736653839011,-500.0,9.992e-05,2]
[348592012,1736653839021,-500.0,9.992e-05,2]
[348592013,1736653839031,-500.0,9.992e-05,2]
[348592014,1736653839041,-500.0,9.992e-05,2]
[348592015,1736653839051,-500.0,9.992e-05,2]
[348592016,1736653839061,-727.12,9.992e-05,2]
[348592017,1736653839071,-540.24,9.992e-05,2]
[348592018,1736653839080,-341.91874837,9.992e-05,2]
[348592019,1736653839091,-500.0,9.992e-05,2]
[348592020,1736653839101,-500.0,9.992e-05,2]
[348592021,1736653839112,-828.8,9.992e-05,2]
[348592022,1736653839122,-500.0,9.992e-05,2]
[348592023,1736653839130,-500.0,9.992e-05,2]
[348592024,1736653839140,-588.92,9.992e-05,2]
[348592025,1736653839149,-500.0,9.992e-05,2]
[348592026,1736653839160,-510.76607033,9.992e-05,2]
[348592027,1736653839169,-500.0,9.992e-05,2]
[348592028,1736653839178,-500.0,9.992e-05,2]
[348592029,1736653839187,-500.0,9.992e-05,2]
[348592030,1736653839197,-545.91,9.992e-05,2]
[348592031,1736653839206,-500.0,9.992e-05,2]
[348592032,1736653839216,-663.87,9.992e-05,2]
[348592033,1736653839225,-500.0,9.992e-05,2]
[348592034,1736653839235,-500.0,9.992e-05,2]
[348592035,1736653839243,-741.93,9.992e-05,2]
[348592036,1736653839252,-500.0,9.992e-05,2]
[348592037,1736653839261,-500.0,9.992e-05,2]
[348592038,1736653839271,-500.0,9.992e-05,2]
[348592039,1736653839280,-500.0,9.992e-05,2]
[348592040,1736653839289,-500.0,9.992e-05,2]
[348592041,1736653839298,-500.0,9.992e-05,2]
[348592042,1736653839307,-2687.57,9.992e-05,2]
[348592043,1736653839316,-500.0,9.992e-05,2]
[348592044,1736653839326,-500.0,9.992e-05,2]
[348592045,1736653839335,-500.0,9.992e-05,2]
[348592046,1736653839345,-500.0,9.992e-05,2]
[348592047,1736653839356,-500.0,9.992e-05,2]
[348592048,1736653839365,-1248.67,9.992e-05,2]
[348592049,1736653839374,-500.0,9.992e-05,2]
[348592050,1736653839383,-663.55,9.992e-05,2]
[348592051,1736653839392,-500.0,9.992e-05,2]
[348592052,1736653839401,-2453.88,9.992e-05,2]
[348592053,1736653839410,-500.0,9.992e-05,2]
[348592054,1736653839420,-500.0,9.992e-05,2]
[348592055,1736653839429,-500.0,9.992e-05,2]
[348592056,1736653839438,-6433.79,9.992e-05,2]
[348592057,1736653839447,-500.0,9.992e-05,2]
[348592058,1736653839456,-566.22,9.992e-05,2]
[348592059,1736653839466,-500.0,9.992e-05,2]
[348592060,1736653839479,-500.0,9.992e-05,2]
[348592061,1736653839488,-393.71910862,9.992e-05,2]
[348592062,1736653839498,-320.79448555,9.992e-05,2]
[348592063,1736653839508,-814.36,9.992e-05,2]
[348592064,1736653839517,-500.0,9.992e-05,2]
[348592065,1736653839527,-500.0,9.992e-05,2]
[348592066,1736653839536,-500.0,9.992e-05,2]
[348592067,1736653839545,-500.0,9.992e-05,2]
[348592068,1736653839554,-500.0,9.992e-05,2]
[348592069,1736653839563,-733.84,9.992e-05,2]
[348592070,1736653839572,-500.0,9.992e-05,2]
[348592071,1736653839582,-604.97,9.992e-05,2]
[348592072,1736653839595,-500.0,9.992e-05,2]
[348592073,1736653839604,-477.54016217,9.992e-05,2]
[348592074,1736653839614,-507.32,9.992e-05,2]
[348592075,1736653839623,-500.0,9.992e-05,2]
[348592076,1736653839633,-500.0,9.992e-05,2]
[348592077,1736653839642,-500.0,9.992e-05,2]
[348592078,1736653839651,-353.27867631,9.992e-05,2]
[348592079,1736653839660,-500.0,9.992e-05,2]
[348592080,1736653839669,-888.16,9.992e-05,2]
[348592081,1736653839678,-500.0,9.992e-05,2]
[348592082,1736653839687,-500.0,9.992e-05,2]
[348592083,1736653839697,-500.0,9.992e-05,2]
[348592084,1736653839706,-737.96,9.992e-05,2]
[348592085,1736653839715,-860.04,9.992e-05,2]
[348592086,1736653839724,-421.08450334,9.992e-05,2]
[348592087,1736653839733,-500.0,9.992e-05,2]
[348592088,1736653839742,-1902.81,9.992e-05,2]
[348592089,1736653839752,-725.76,9.992e-05,2]
[348592090,1736653839761,-500.0,9.992e-05,2]
[348592091,1736653839770,-500.0,9.992e-05,2]
[348592092,1736653839779,-500.0,9.992e-05,2]
[348592093,1736653839789,-500.0,9.992e-05,2]
[348592094,1736653839798,-500.0,9.992e-05,2]
[348592095,1736653839807,-811.56802513,9.992e-05,2]
[348592096,1736653840152,-406.09197487,9.992e-05,2]
[348592097,1736653840162,-83.70373501,9.992e-05,2]
[348592098,1736653840190,-416.29626499,9.992e-05,2]
[348592099,1736653840199,-357.54049889,9.992e-05,2]
[348592100,1736653840210,-146.76950111,9.992e-05,2]
[348592101,1736653840219,-158.81707603,9.992e-05,2]
[348592102,1736653840229,-83.00484142,9.992e-05,2]
[348592103,1736653840241,-272.41626083,9.992e-05,2]
[348592104,1736653840251,-361.50159535,9.992e-05,2]
[348592105,1736653840263,-138.49840465,9.992e-05,2]
[348592106,1736653840271,-500.0,9.992e-05,2]
[348592107,1736653840280,-500.0,9.992e-05,2]
[348592108,1736653840290,-99.54159535,9.992e-05,2]
[348592109,1736653840301,-400.45840465,9.992e-05,2]
[348592110,1736653840310,-3712.59,9.992e-05,2]
[348592111,1736653840319,-3757.05,9.992e-05,2]
[348592112,1736653840329,-284.63962489,9.992e-05,2]
[348592113,1736653840340,-500.0,9.992e-05,2]
[348592114,1736653840349,-500.0,9.992e-05,2]
[348592115,1736653840359,-500.0,9.992e-05,2]
[348592116,1736653840368,-500.0,9.992e-05,2]
[348592117,1736653840378,-711.1,9.992e-05,2]
[348592118,1736653840387,-500.0,9.992e-05,2]
[348592119,1736653840396,-500.0,9.992e-05,2]
[348592120,1736653840405,-500.0,9.992e-05,2]
[348592121,1736653840416,-500.0,9.992e-05,2]
[348592122,1736653840425,-1137.14,9.992e-05,2]
[348592123,1736653840434,-500.0,9.992e-05,2]
[348592124,1736653840444,-500.0,9.992e-05,2]
[348592125,1736653840453,-500.0,9.992e-05,2]
[348592126,1736653840462,-500.0,9.992e-05,2]
[348592127,1736653840472,-500.0,9.992e-05,2]
[348592128,1736653840482,-340.29794732,9.992e-05,2]
[348592129,1736653840494,-159.70205268,9.992e-05,2]
[348592130,1736653840503,-500.0,9.992e-05,2]